{"text_format":"3","workbook":"xlsx","n_sheets":2,"sheets":["供应商信息收集表","项目要求"],"not_rendered":{"defined_names":2},"read":"whole","date_system":"1900"}

{"sheet":"供应商信息收集表","index":0,"n_rows":31,"n_cols":21,"rows_kept":31,"merged":[[4,1,5,1],[4,2,4,4],[4,5,4,14],[4,15,4,18],[4,20,5,20]]}
[]
[null,"供应商信息收集台帐",null,"请填写下方表格信息后点击项目要求继续填写"]
[null," Supplier management account"]
[]
[null,"序号","项目概况",null,null,"供应商基础信息",{"$nulls":9},"近年业绩情况",{"$nulls":3},"项目报价","备注"]
[null,null,"采购项目名称","采购项目编号","项目要求\n（可另附子表）","单位名称","联系人","联系电话","邮箱","注册资本金","纳税人身份","成立年份","统一社会信用码","经营范围","资质情况","项目名称","完成时间","业主单位","合同金额","（可另附子表）"]
[null,{"$f":"IF(C7=\"\",\"\",ROW()-6)","v":1},"框架眼镜邮寄盒采购项目","CG008-20260209","见附件1《框架眼镜邮寄盒采购需求》，具体规格信息见附件2《框架眼镜邮寄盒样式图》。",{"$nulls":10},"1.\n2.\n3.","1.\n2.\n3.","1.\n2.\n3.","1.\n2.\n3.","报价请于本表格sheet2《项目要求》填写"]
[]
[]
[]
[]
[]
[null,""]
[null,""]
[null,""]
[null,""]
[null,""]
[null,""]
[null,""]
[null,""]
[null,""]
[null,""]
[null,""]
[null,""]
[null,""]
[null,""]
[null,""]
[null,""]
[null,""]
[null,""]
[null,""]

{"sheet":"项目要求","index":1,"n_rows":5,"n_cols":7,"rows_kept":5,"merged":[[0,0,0,5],[1,0,1,1],[1,2,1,5],[2,0,2,5]]}
["具体需求见附件1"]
["是否满足附件1《框架眼镜邮寄盒采购需求》所有条款？",{"$nulls":5},"请填写是否满足所有需求(如有无法满足的条款请说明），然后填写报价及税率。"]
["框架眼镜邮寄盒报价"]
["项目预算金额","预计采购数量","供货期","限价\n（元/个）","含税报价\n（元/个）","增值税\n税率"]
["资格标，无预算","按采购人实际需求为准","1年",6.33,"请填入","请填入"]